bitfinex/quotes_ETHUSD_20241204
["timestamp","ask_amount","ask_price","bid_price","bid_amount"]
[1733303138934,0.55,3706.2,3704.6,0.7703]
[1733303139141,0.55,3706.2,3705.5,2.69867]
[1733303139739,0.55,3706.2,3705.6,2.69856]
[1733303139936,0.55,3706.2,3705.7,2.69853]
[1733303140147,0.3997884,3707.0,3705.7,1.034853]
[1733303140297,2.69731,3707.4,3706.2,2.69816]
[1733303140636,2.69717,3707.6,3706.5,2.69796]
[1733303141462,2.69726,3707.5,3705.8,0.5361642]
[1733303141650,2.6971,3707.7,3706.4,2.69801]
[1733303141839,2.697,3707.9,3706.1,2.69825]
[1733303142182,2.69735,3707.4,3705.8,0.5361642]
[1733303142673,0.55,3707.3,3706.1,2.69821]
[1733303142873,3.24745,3707.3,3706.1,2.69821]
[1733303143173,0.55,3707.2,3706.0,2.69832]
[1733303143377,0.55,3707.6,3705.8,0.5361642]
[1733303143378,0.55,3707.1,3705.8,0.5361642]
[1733303143677,0.55,3707.6,3706.4,2.69803]
[1733303143863,0.55,3707.4,3706.0,2.69832]
[1733303144234,0.55,3707.4,3706.5,2.69796]
[1733303145575,0.55,3707.4,3706.6,2.69788]
[1733303146095,0.55,3707.7,3706.6,2.69788]
[1733303146393,0.55,3708.1,3706.6,2.69788]
[1733303146696,0.55,3707.9,3706.3,2.69807]
[1733303146893,2.69733,3707.4,3706.2,2.6981]
[1733303147206,2.69776,3706.8,3705.7,0.765]
[1733303147358,2.69776,3706.8,3705.3,2.69881]
[1733303147359,0.55,3707.6,3705.8,2.69842]
[1733303147556,0.55,3706.9,3705.7,0.52824829]
[1733303147894,0.874747,3706.9,3705.7,0.95842312]
[1733303148082,0.55,3706.9,3705.9,2.69837]
[1733303148278,0.55,3707.0,3705.7,0.52824829]
[1733303148767,3.0,3707.9,3705.6,2.69855]
[1733303148768,0.55,3706.8,3705.6,2.69855]
[1733303148965,0.55,3706.9,3705.7,2.69848]
[1733303149190,0.55,3706.9,3705.4,0.7735]
[1733303149191,0.55,3706.9,3705.8,2.69845]
[1733303149403,0.324764,3706.8,3705.9,2.69839]
[1733303149695,0.324764,3706.8,3705.6,0.5476146]
[1733303149902,0.324764,3706.8,3705.4,0.7735]
[1733303150195,0.55,3707.0,3705.9,2.69833]
[1733303150351,0.79948426,3707.0,3705.9,2.69833]
[1733303150758,3.49711426,3707.0,3705.9,2.69833]
[1733303150954,0.24948426,3706.9,3705.4,0.7735]
[1733303151160,0.24948426,3706.9,3706.3,2.6981]
[1733303151475,0.55,3707.2,3706.1,3.46362]
[1733303151668,0.59917269,3707.1,3706.1,3.46362]
[1733303152025,0.59917269,3707.1,3706.1,0.7654]
[1733303152194,0.59917269,3707.1,3706.1,3.46364]
[1733303152398,0.59917269,3707.1,3705.6,2.69857]
[1733303152399,2.69781,3706.7,3705.6,3.46395]
[1733303152701,0.24999448,3706.6,3705.6,0.7654]
[1733303152869,0.79999218,3706.8,3705.9,2.69839]
[1733303153206,0.24999218,3706.7,3705.9,2.69839]
[1733303153402,0.24999218,3706.6,3705.9,2.69839]
[1733303153604,0.24999218,3706.5,3705.6,1.14194]
[1733303153773,0.55,3706.8,3705.8,2.69846]
[1733303153972,0.25021826,3706.7,3705.8,2.69846]
[1733303154171,2.69796,3706.5,3705.2,0.7981]
[1733303154387,0.25021826,3706.4,3705.5,2.69865]
[1733303154697,0.25021826,3706.3,3705.5,2.69865]
[1733303155002,0.25021826,3706.2,3705.4,2.69871]
[1733303155206,0.25049033,3706.1,3705.2,0.7981]
[1733303155505,0.94974101,3706.8,3705.2,0.7981]
[1733303155506,0.25049033,3706.0,3705.3,2.69877]
[1733303155660,0.25049033,3705.9,3705.3,2.69877]
[1733303155895,0.25049033,3705.8,3705.3,2.69877]
[1733303156104,0.40123514,3706.4,3705.3,2.69877]
[1733303156304,0.41954713,3706.3,3705.3,2.69877]
[1733303156508,0.65202311,3706.2,3705.3,2.69877]
[1733303156704,0.40124175,3706.1,3705.3,2.69877]
[1733303156991,0.65256634,3706.0,3705.3,2.69877]
[1733303157199,0.25078136,3705.9,3705.3,2.69877]
[1733303157401,0.25078136,3705.8,3705.3,2.69877]
[1733303157700,0.25078136,3705.7,3705.3,2.69877]
[1733303157999,0.25078136,3705.6,3705.3,2.69877]
[1733303158200,0.570931,3706.2,3705.4,2.69876]
[1733303158498,0.82241201,3706.1,3705.4,2.69876]
[1733303158703,0.65364674,3706.0,3705.4,2.69876]
[1733303158932,0.65364674,3705.9,3705.4,2.69876]
[1733303159103,0.25148101,3705.8,3705.2,0.7981]
[1733303159308,0.25148101,3705.7,3705.4,2.69871]
[1733303159633,0.41796015,3706.5,3705.2,0.7981]
[1733303159634,0.25162573,3705.6,3705.2,0.7981]
[1733303159844,0.16875659,3706.3,3705.6,2.6986]
[1733303160045,0.8230134,3706.2,3705.6,2.6986]
[1733303160343,2.85138426,3706.7,3705.6,2.6986]
[1733303160344,0.823015,3706.1,3705.6,2.6986]
[1733303160511,0.65425681,3706.0,3705.7,2.69848]
[1733303160697,0.65425681,3705.9,3705.6,0.54621496]
[1733303160899,0.41937622,3706.8,3706.0,2.69829]
[1733303161129,0.82314244,3706.7,3706.1,2.69823]
[1733303161343,0.82314244,3706.6,3706.1,2.69823]
[1733303161636,0.65440331,3706.5,3706.3,2.69808]
[1733303161839,0.65440331,3706.4,3706.3,2.69808]
[1733303162338,0.25169358,3706.4,3706.3,2.69808]
[1733303162728,0.25169358,3706.4,3706.3,3.237715]
[1733303163817,0.41937622,3707.3,3706.3,1.371735]
[1733303164031,0.65490361,3707.2,3706.8,2.69769]
[1733303164325,0.41937622,3707.4,3706.9,2.69761]
[1733303164326,0.65490361,3707.1,3706.9,2.69761]
[1733303164543,0.65490361,3707.0,3706.3,1.371735]
[1733303164729,0.65490361,3706.9,3706.5,2.69795]
[1733303164934,0.65490361,3706.8,3706.5,2.69795]
[1733303165109,0.65490361,3706.7,3706.4,2.69802]
[1733303165300,0.40301761,3706.6,3706.4,2.69802]
[1733303165601,0.251886,3706.5,3706.4,2.69802]
[1733303168309,0.251886,3706.5,3706.4,3.620853]
[1733303169506,0.41937622,3707.4,3706.4,0.922833]
[1733303169722,0.65522808,3707.3,3706.5,2.69796]
[1733303169914,0.65522808,3707.2,3706.6,2.69783]
[1733303170127,0.65522808,3707.1,3706.6,2.69783]
[1733303170436,0.65522808,3707.0,3706.6,2.69783]
[1733303170618,0.65522808,3706.9,3706.6,2.69783]
[1733303170856,0.41937622,3707.4,3706.4,0.922833]
[1733303170857,0.65522808,3706.8,3706.4,0.922833]
[1733303171188,0.6551857,3706.7,3706.3,2.6981]
[1733303171345,0.6551857,3706.6,3706.0,0.5482536]
[1733303171686,1.11427098,3707.7,3706.0,0.5482536]
[1733303171687,0.65520027,3706.5,3706.0,0.5482536]
[1733303171983,0.25198284,3706.4,3706.0,0.5482536]
[1733303172183,0.4199714,3707.2,3706.3,2.6981]
[1733303172485,1.0751282,3707.1,3706.1,2.69818]
[1733303172685,0.4199714,3706.7,3706.0,0.5482536]
[1733303172890,1.24385264,3706.6,3706.2,2.69816]
[1733303173190,0.82388124,3706.5,3705.8,2.69845]
[1733303173361,0.82388124,3706.4,3705.8,2.69844]
[1733303173561,0.82388124,3706.3,3705.8,0.347284]
[1733303173872,0.57189786,3706.2,3705.9,2.69839]
[1733303174080,0.40317342,3706.1,3705.9,2.69839]
[1733303174243,0.40317342,3706.0,3705.9,2.69839]
[1733303174448,0.6551568,3706.0,3705.9,2.69839]
[1733303175804,0.6551568,3706.0,3705.9,3.3502554]
[1733303177408,0.6551568,3706.0,3705.9,0.6518654]
[1733303177589,0.6551568,3706.0,3705.6,0.25194458]
[1733303177795,1.67140648,3706.9,3705.8,2.69845]
[1733303177796,0.6551568,3705.9,3705.8,2.69845]
[1733303178606,0.25198338,3705.9,3705.7,2.69854]
[1733303178903,0.58894904,3706.6,3705.8,2.69847]
[1733303179203,0.82427903,3706.5,3705.9,2.69839]
[1733303179413,0.65553829,3706.4,3705.9,2.69839]
[1733303179572,0.82427903,3706.3,3705.9,2.69839]
[1733303179769,0.65553829,3706.2,3706.0,2.69831]
[1733303179999,0.25213009,3706.1,3706.0,2.69831]
[1733303180195,0.25213009,3706.1,3706.0,5.69831]
[1733303181564,0.65562228,3706.1,3706.0,5.69831]
[1733303183064,0.25213009,3706.1,3706.0,5.69831]
[1733303185987,1.11427098,3706.9,3706.2,2.69814]
[1733303186197,1.35553475,3706.8,3706.2,2.69814]
[1733303186407,0.65588935,3706.7,3706.0,5.69831]
[1733303186563,0.82461215,3706.6,3705.5,0.54104835]
[1733303186902,0.82461215,3706.5,3705.5,0.54104835]
[1733303187061,4.10540069,3706.4,3705.6,2.6986]
[1733303187265,3.17499362,3706.3,3705.8,2.69845]
[1733303187464,0.65588935,3706.2,3705.8,2.69845]
[1733303187668,0.65588935,3706.1,3705.8,2.69845]
[1733303187902,0.25226513,3706.0,3705.8,2.6984]
[1733303188208,0.25226513,3705.9,3705.8,2.6984]
[1733303189367,1.11427098,3706.6,3705.8,3.4937]
[1733303189585,0.82486611,3706.5,3706.2,2.69815]
[1733303189785,0.82486611,3706.5,3706.3,2.6981]
[1733303189786,0.25235599,3706.4,3706.3,2.6981]
[1733303190330,0.65612558,3706.4,3706.3,2.6981]
[1733303190515,0.25235599,3706.4,3706.3,3.5061]
[1733303192731,0.25233808,3706.4,3706.2,0.8186]
[1733303192934,1.11427098,3707.2,3706.5,2.69792]
[1733303193087,1.86889565,3707.1,3706.5,2.69792]
[1733303193288,0.40374909,3707.0,3706.7,2.6978]
[1733303193522,0.65609227,3706.9,3706.4,0.52751358]
[1733303193688,1.11427098,3707.5,3706.8,2.69774]
[1733303193890,0.65608486,3707.4,3706.8,2.69774]
[1733303194090,0.65611066,3707.3,3707.0,2.69759]
[1733303194399,0.25226844,3707.2,3707.1,2.69752]
[1733303195487,2.51483461,3708.0,3706.9,0.7585]
[1733303195862,1.11631403,3707.9,3707.0,0.02697024]
[1733303195997,1.11427098,3708.2,3706.9,0.7585]
[1733303195998,0.65568241,3707.8,3706.9,0.7585]
[1733303196189,0.25218554,3707.7,3707.0,2.69759]
[1733303196382,0.25202952,3707.6,3707.5,2.69723]
[1733303197386,0.40306044,3708.2,3707.5,0.764]
[1733303197590,0.16866765,3708.4,3707.5,0.764]
[1733303197591,0.25192233,3708.1,3707.7,3.0]
[1733303197838,0.16865372,3708.6,3708.1,2.69674]
[1733303197988,0.92325653,3708.5,3708.1,2.69674]
[1733303198332,0.65501999,3708.4,3708.1,2.69678]
[1733303198485,0.65501999,3708.3,3708.1,2.69678]
[1733303198689,0.25193076,3708.2,3708.1,2.69678]
[1733303199035,0.25193076,3708.2,3707.7,2.69702]
[1733303199236,0.25193076,3708.1,3707.7,2.69702]
[1733303199432,0.26823654,3708.5,3707.8,2.69698]
[1733303199433,0.25193076,3708.0,3707.8,2.69698]
[1733303199638,0.40263795,3708.3,3707.7,2.69707]
[1733303199807,0.25165623,3708.2,3707.9,2.69692]
[1733303200131,0.26823654,3708.5,3707.5,0.764]
[1733303200132,0.2517333,3708.1,3707.5,0.764]
[1733303200434,4.26438897,3708.8,3707.8,2.697]
[1733303200732,2.33339003,3708.7,3707.8,2.697]
[1733303200987,0.65413912,3708.6,3707.8,2.69695]
[1733303201143,0.65413912,3708.5,3708.0,0.268237]
[1733303201303,0.25159197,3708.4,3708.0,0.268237]
[1733303201498,0.25159197,3708.3,3708.0,0.268237]
[1733303201703,0.25159197,3708.2,3708.0,0.268237]
[1733303201899,0.74703757,3708.7,3707.9,2.69694]
[1733303202098,0.99676405,3708.6,3708.0,2.6968]
[1733303202317,0.25151461,3708.5,3708.0,3.22367965]
[1733303202549,0.25151461,3708.4,3708.0,3.22367965]
[1733303202756,0.25151461,3708.3,3708.0,3.22367965]
[1733303203058,0.40230575,3708.5,3708.1,2.69677]
[1733303203358,0.25142203,3708.4,3708.0,0.52687965]
[1733303203652,0.2513471,3708.3,3708.0,0.52687965]
[1733303203814,0.40227525,3708.7,3708.1,2.69676]
[1733303204010,0.65362512,3708.6,3708.0,0.52687965]
[1733303204240,0.25134987,3708.5,3708.2,2.69671]
[1733303204445,0.25134987,3708.4,3707.5,3.764]
[1733303204613,2.69705,3707.8,3707.2,0.747038]
[1733303204822,0.25125593,3707.7,3707.2,0.747038]
[1733303205021,3.24673,3708.2,3707.2,0.747038]
[1733303205022,0.40227525,3708.0,3707.2,0.747038]
[1733303205323,0.25125116,3707.9,3707.2,2.69742]
[1733303205526,0.25125116,3707.8,3707.2,2.69739]
[1733303205739,0.25125116,3707.8,3706.9,0.54258378]
[1733303205740,0.40227525,3708.3,3707.3,2.69735]
[1733303206068,1.07488062,3708.2,3707.3,2.69735]
[1733303206249,0.653564,3708.1,3707.3,2.69735]
[1733303206566,0.25128875,3708.0,3707.4,2.6973]
[1733303206744,0.40227525,3708.1,3707.4,2.6973]
[1733303206745,0.25128875,3707.9,3707.4,2.6973]
[1733303206943,0.25128875,3707.8,3706.9,0.54258378]
[1733303207160,0.55,3708.3,3707.4,2.69723]
[1733303207361,1.26976908,3708.2,3707.4,2.69723]
[1733303207545,0.2514232,3708.1,3707.4,2.69723]
[1733303207746,0.2514232,3708.0,3707.4,2.69723]
[1733303207931,0.2514232,3707.9,3707.1,3.0]
[1733303208137,0.40227525,3708.4,3707.7,2.69708]
[1733303208343,0.65369908,3708.3,3707.7,2.69708]
[1733303208622,0.25142383,3708.2,3707.7,2.69708]
[1733303208818,0.25142383,3708.1,3707.7,2.69708]
[1733303209039,0.15165462,3708.4,3707.8,2.697]
[1733303209223,0.25141524,3708.3,3707.5,0.02696898]
[1733303209417,0.25141524,3708.2,3708.1,2.69673]
[1733303209620,0.40227843,3708.6,3708.1,2.69673]
[1733303209865,0.25141922,3708.5,3708.1,2.69673]
[1733303210025,0.25141922,3708.4,3708.1,2.69673]
[1733303210216,1.39755863,3709.0,3707.9,0.7961]
[1733303210422,0.25141016,3708.9,3708.2,2.69671]
[1733303210656,0.25141016,3708.8,3708.2,2.69671]
[1733303210831,0.25141016,3708.7,3708.2,2.69671]
[1733303211033,0.25141016,3708.6,3708.2,2.69671]
[1733303211362,0.25141016,3708.5,3708.1,0.54576752]
[1733303211660,0.25141016,3708.4,3708.1,0.54576752]
[1733303211962,2.51182961,3709.1,3708.1,0.54576752]
[1733303212125,1.92964634,3709.0,3708.1,0.54576752]
[1733303212328,0.2514194,3708.9,3708.0,2.69684]
[1733303212523,0.2514194,3708.8,3708.0,3.23879261]
[1733303212750,0.25143171,3708.7,3708.0,3.23879261]
[1733303212952,0.25143171,3708.6,3708.0,3.23879261]
[1733303213186,0.25143171,3708.5,3708.2,2.69671]
[1733303213329,0.74682236,3709.0,3708.2,2.69671]
[1733303213524,0.25143443,3708.9,3708.2,2.69671]
[1733303213736,0.25143443,3708.8,3708.2,2.69671]
[1733303213935,0.25143443,3708.7,3708.2,2.69671]
[1733303214147,0.25143443,3708.6,3708.2,2.69671]
[1733303214331,0.25143443,3708.5,3708.2,2.69671]
[1733303214538,0.25143443,3708.4,3708.0,2.69684]
[1733303214777,0.25143443,3708.3,3707.9,1.145414]
[1733303214971,2.69611,3709.1,3708.1,2.69677]
[1733303215139,0.2514725,3709.0,3707.9,1.69848525]
[1733303215326,0.2514725,3708.9,3707.9,1.69848525]
[1733303215667,0.2514725,3708.8,3707.9,1.69848525]
[1733303215852,2.69611,3709.1,3707.9,1.69848525]
[1733303215853,0.2514725,3708.7,3707.9,1.69848525]
[1733303216090,2.69611,3709.1,3707.9,1.69848525]
[1733303216299,0.67445849,3709.0,3707.9,1.34917125]
[1733303216605,0.25151511,3708.9,3708.1,2.69677]
[1733303216904,0.25151511,3708.8,3708.1,2.69677]
[1733303217105,0.25151511,3708.7,3708.1,2.69677]
[1733303217402,0.42294338,3709.0,3708.1,2.69677]
[1733303217403,0.25151511,3708.6,3708.1,2.69677]
[1733303217623,0.25151511,3708.5,3708.1,2.69677]
[1733303217770,0.25151511,3708.4,3708.1,2.69677]
[1733303217970,0.25151511,3708.3,3708.1,2.69677]
[1733303218172,0.42294338,3709.0,3708.1,2.69677]
[1733303218412,0.79113186,3708.9,3708.1,2.69677]
[1733303218608,0.25179295,3708.8,3708.1,2.69677]
[1733303218813,0.25179295,3708.7,3708.1,2.69677]
[1733303219012,0.25179295,3708.6,3708.1,2.69677]
[1733303219310,0.25179295,3708.5,3708.1,2.69677]
[1733303219512,0.37068947,3708.9,3708.1,2.69677]
[1733303219829,0.42294338,3709.0,3708.1,2.69677]
[1733303219830,1.17265862,3708.8,3708.1,2.69677]
[1733303220004,0.65503706,3708.7,3708.1,2.69677]
[1733303220195,0.65503706,3708.6,3708.1,2.69677]
[1733303220528,0.65503706,3708.5,3708.0,2.69687]
[1733303220727,0.65503706,3708.4,3708.0,2.69687]
[1733303221059,0.65503706,3708.3,3708.0,2.69687]
[1733303221186,0.65503706,3708.2,3708.0,2.69687]
[1733303221391,0.65503706,3708.1,3708.0,2.69687]
[1733303221783,0.65503706,3708.1,3708.0,3.61587]
[1733303222025,0.25193499,3708.1,3708.0,6.61587]
[1733303222533,0.16862408,3708.8,3708.0,3.919]
[1733303222715,0.824405,3708.7,3708.6,2.69642]
[1733303224960,0.65578092,3708.7,3708.6,2.69642]
[1733303225321,0.65578092,3708.7,3708.6,3.318362]
[1733303225322,0.82440161,3708.7,3708.6,3.318362]
[1733303225518,0.65578092,3708.7,3708.6,3.318362]
[1733303225819,0.25222102,3708.7,3708.6,3.318362]
[1733303226762,0.25222102,3708.7,3708.6,6.318362]
[1733303227862,0.41989165,3709.7,3709.3,2.69589]
[1733303228076,0.41989165,3709.7,3708.7,3.0]
[1733303228077,0.82420275,3709.6,3708.7,3.0]
[1733303228232,0.41989165,3709.9,3709.0,0.832]
[1733303228426,1.11427098,3710.5,3709.4,2.69579]
[1733303228427,0.82388954,3709.8,3709.4,2.69579]
[1733303228623,0.82388954,3709.7,3709.4,2.69579]
[1733303228955,0.82390059,3709.6,3709.0,2.69607]
[1733303229277,0.82390059,3709.5,3709.0,2.69607]
[1733303229558,0.65530274,3709.4,3708.9,3.0]
[1733303229765,0.41989165,3709.8,3708.6,0.7963]
[1733303229766,0.65530274,3709.3,3708.6,0.7963]
[1733303229921,0.65530274,3709.2,3708.9,3.0]
[1733303230124,0.25203951,3709.1,3708.6,0.7963]
[1733303230317,0.41989165,3709.6,3709.0,0.54236336]
[1733303230560,1.24354869,3709.5,3709.0,0.54236336]
[1733303230760,0.82365704,3709.4,3709.0,0.54236336]
[1733303230932,0.82365704,3709.3,3709.0,0.54236336]
[1733303231166,0.65504127,3709.2,3709.0,0.54236336]
[1733303231371,0.65504127,3709.1,3708.5,2.6965]
[1733303231569,0.65504127,3709.0,3708.5,2.6965]
[1733303231891,0.25193895,3708.9,3708.4,3.0]
[1733303232092,0.25193895,3708.8,3708.4,3.0]
[1733303232293,0.25193895,3708.7,3708.1,2.69677]
[1733303232502,0.65502327,3708.6,3707.9,2.69692]
[1733303235172,0.65503124,3708.6,3708.0,6.22287192]
[1733303235383,0.65503124,3708.5,3708.0,6.22287192]
[1733303235583,0.25193509,3708.4,3708.0,6.22287192]
[1733303235896,0.25193509,3708.3,3708.0,0.52602192]
[1733303236194,0.16863825,3708.8,3708.1,2.69679]
[1733303236495,0.65536983,3708.7,3708.1,2.69679]
[1733303236701,0.65536983,3708.6,3708.2,2.69672]
[1733303237003,0.65536983,3708.5,3708.2,2.69672]
[1733303237159,0.80092093,3709.1,3708.2,2.69672]
[1733303237160,0.25206532,3708.4,3708.2,2.69672]
[1733303237362,0.25206532,3708.3,3708.2,2.69672]
[1733303237678,0.16863221,3709.0,3708.0,0.52602192]
[1733303237877,0.82411917,3708.9,3708.0,3.52602192]
[1733303238175,0.65548696,3708.8,3708.1,0.8123]
[1733303238487,0.65548696,3708.7,3708.3,2.69661]
[1733303238697,0.65548696,3708.6,3708.3,2.69661]
[1733303238877,0.65548696,3708.5,3708.3,2.69661]
[1733303239084,0.25211037,3708.4,3708.3,2.69661]
[1733303240505,0.25211037,3708.4,3708.1,3.50906]
[1733303240709,0.25211037,3708.3,3708.1,2.69676]
[1733303240866,1.3999507,3709.0,3708.1,2.69676]
[1733303241068,2.48834366,3708.9,3708.1,2.69676]
[1733303241303,0.82440742,3708.8,3708.1,2.69676]
[1733303241505,0.65577195,3708.7,3708.1,2.69676]
[1733303241705,0.65577195,3708.6,3708.1,2.69676]
[1733303241908,0.65577195,3708.5,3708.1,2.69676]
[1733303242114,0.25223568,3708.4,3708.1,2.69676]
[1733303242274,0.25223568,3708.3,3708.1,2.69676]
[1733303242811,0.25223568,3708.2,3708.1,5.69676]
[1733303242982,1.11427098,3709.0,3708.1,5.69676]
[1733303243169,0.96906441,3708.9,3708.1,2.69676]
[1733303243365,0.96906441,3708.9,3708.0,0.52602192]
[1733303243366,0.8244932,3708.8,3708.0,0.52602192]
[1733303243687,0.57224189,3708.7,3708.0,0.52602192]
[1733303243867,0.25225379,3708.8,3708.0,0.52602192]
[1733303243868,0.65585833,3708.6,3708.0,0.52602192]
[1733303244070,0.25225379,3708.5,3708.0,0.52602192]
[1733303244269,0.65585833,3708.4,3708.0,0.52602192]
[1733303244507,0.25225379,3708.3,3708.0,0.52602192]
[1733303244699,0.25225379,3708.2,3708.0,0.52602192]
[1733303245006,0.25225379,3708.1,3708.0,3.22289192]
[1733303245613,1.11427098,3708.8,3708.0,3.22289192]
[1733303245911,0.25230532,3708.1,3708.0,2.69687]
[1733303246354,0.25230532,3708.1,3707.8,3.50929]
[1733303246559,0.25230532,3708.0,3707.8,3.50929]
[1733303246735,0.16864395,3708.6,3707.9,0.53529897]
[1733303246933,0.65604802,3708.5,3707.9,3.23216897]
[1733303247173,0.65604802,3708.4,3707.9,3.23216897]
[1733303247461,0.65604802,3708.3,3707.9,3.23216897]
[1733303247670,0.25232616,3708.2,3707.9,3.23216897]
[1733303247822,0.16864446,3708.7,3707.9,3.23216897]
[1733303247823,0.25232616,3708.1,3707.9,3.23216897]
[1733303248027,0.25232616,3708.0,3707.9,3.23216897]
[1733303248254,0.25232616,3708.0,3707.8,0.8123]
[1733303248569,0.25232616,3707.9,3707.8,3.50931]
[1733303248723,0.16864636,3708.5,3707.8,0.8123]
[1733303248917,0.6560921,3708.4,3708.0,2.69684]
[1733303249124,0.6560921,3708.3,3708.0,2.69684]
[1733303249434,0.6560921,3708.2,3708.1,3.51069]
[1733303249634,0.25234311,3708.2,3708.1,3.51069]
[1733303251578,0.65613967,3708.2,3708.1,3.51069]
[1733303251734,0.25234311,3708.2,3708.1,3.51069]
[1733303252336,0.25235638,3708.2,3708.1,0.8139]
[1733303252546,0.25235638,3708.2,3708.1,3.89851309]
[1733303253166,0.16862376,3708.8,3708.4,2.69653]
[1733303253478,0.65609832,3708.7,3708.4,2.69653]
[1733303253788,0.65609832,3708.6,3708.4,2.69653]
[1733303253988,0.65609832,3708.5,3708.4,2.69653]
[1733303254846,0.65609832,3708.5,3708.1,0.8139]
[1733303255100,0.65609832,3708.4,3707.8,1.29842658]
[1733303255252,1.40217735,3708.7,3708.2,2.69671]
[1733303255253,0.65609832,3708.3,3708.2,2.69671]
[1733303255593,0.65612011,3708.3,3708.2,2.69671]
[1733303255748,1.11427098,3708.8,3708.2,2.69671]
[1733303255949,4.55467543,3708.7,3708.2,2.69671]
[1733303256199,1.59094855,3708.6,3708.2,2.69671]
[1733303256490,0.65611666,3708.5,3707.8,3.46516]
[1733303256664,0.65611666,3708.4,3708.2,2.69665]
[1733303256860,0.27856775,3708.7,3708.2,2.69665]
[1733303256861,0.25235228,3708.3,3708.2,2.69667]
[1733303259206,0.27856775,3708.7,3708.2,2.69667]
[1733303259500,1.76026392,3708.6,3708.2,2.69667]
[1733303259794,0.82528617,3708.5,3708.2,2.69667]
[1733303260106,0.65665161,3708.4,3708.2,2.69667]
[1733303260395,0.65665161,3708.3,3708.2,2.69667]
[1733303260556,25.52761061,3708.3,3708.0,3.34752263]
[1733303260771,25.52761061,3708.3,3707.8,0.7682]
[1733303260772,0.65682632,3708.2,3707.8,0.55073049]
[1733303261070,0.65682632,3708.1,3707.8,0.55073049]
[1733303261268,0.65682632,3708.0,3707.8,0.55073049]
[1733303261484,0.25255831,3707.9,3707.5,0.7728]
[1733303261693,24.870959,3708.3,3707.2,0.8261]
[1733303261694,0.65693658,3707.8,3707.2,0.8261]
[1733303261886,0.25255831,3707.7,3707.2,0.8261]
[1733303262083,0.65694475,3707.6,3707.5,2.69719]
[1733303262599,0.65694475,3707.6,3707.5,3.22336518]
[1733303263303,0.65694475,3707.6,3707.5,0.52617518]
[1733303264699,0.65694475,3707.6,3707.5,3.22340518]
[1733303265897,0.25255831,3707.6,3707.5,3.22340518]
[1733303266099,0.65659059,3707.6,3707.5,3.22340518]
[1733303266269,0.25255831,3707.6,3707.5,3.22340518]
[1733303266915,0.25255831,3707.6,3707.5,4.6925947]
[1733303267076,0.16864737,3708.2,3708.1,2.69676]
[1733303267276,0.65638867,3708.2,3708.1,2.69676]
[1733303268192,0.65638867,3708.2,3707.5,1.9953647]
[1733303268488,0.65638867,3708.1,3707.9,2.69693]
[1733303268793,0.65640262,3708.0,3707.9,2.69693]
[1733303269378,0.65640262,3708.0,3707.5,1.9953647]
[1733303269692,0.40396763,3707.9,3707.8,2.69701]
[1733303269894,0.65642481,3707.9,3707.8,2.69701]
[1733303270790,0.65642481,3707.9,3707.6,2.69709]
[1733303271003,0.65642481,3707.8,3707.6,2.69709]
[1733303271176,0.65642481,3707.7,3707.5,0.52617518]
[1733303271380,0.25245718,3707.6,3707.5,3.22340518]
[1733303272313,0.25245718,3707.6,3707.5,2.69723]
[1733303272735,0.16865765,3708.1,3707.4,0.52783407]
[1733303272878,0.65645693,3708.0,3707.4,0.52783407]
[1733303273079,0.40397274,3707.9,3707.6,2.69712]
[1733303273277,0.65645693,3707.8,3707.6,2.69712]
[1733303273581,26.40603697,3708.3,3707.6,2.69712]
[1733303273582,0.65645693,3707.7,3707.6,2.69712]
[1733303273985,1.40198899,3708.2,3707.6,2.69712]
[1733303274183,25.98522998,3708.3,3707.6,2.69712]
[1733303274436,2.33700029,3708.2,3707.4,0.52783407]
[1733303274635,25.98522998,3708.3,3707.5,2.69717]
[1733303274833,3.4513135,3708.2,3707.4,0.52783407]
[1733303275040,0.93481701,3708.1,3707.4,0.52783407]
[1733303275245,1.11427098,3708.2,3707.5,2.69716]
[1733303275546,4.27684192,3708.1,3707.6,2.69715]
[1733303275731,1.76010199,3708.0,3707.6,2.69715]
[1733303276052,3.16265697,3707.9,3707.4,3.22512407]
[1733303276342,1.7601168,3707.8,3707.4,3.22512407]
[1733303276523,0.65647034,3707.7,3707.4,3.22512407]
[1733303276693,0.65647034,3707.6,3707.4,3.22512407]
[1733303276989,0.65647034,3707.5,3707.4,3.22512407]
[1733303277161,0.25248859,3707.5,3707.4,3.22512407]
[1733303278699,0.25248859,3707.5,3707.4,0.52783407]
[1733303278847,0.65637223,3707.5,3707.4,0.52783407]
[1733303279487,0.25248859,3707.5,3707.2,2.69739]
[1733303279683,0.25248859,3707.4,3706.9,3.46543]
[1733303279890,1.11427098,3708.0,3706.9,3.46543]
[1733303279891,0.25248859,3707.3,3707.2,2.69738]
[1733303281591,1.57107154,3708.0,3707.5,2.69716]
[1733303281885,2.23755408,3707.9,3707.4,2.69724]
[1733303282083,0.65620694,3707.8,3707.5,2.69722]
[1733303282294,0.47775633,3707.9,3707.7,2.69708]
[1733303282577,0.6561794,3707.8,3707.5,0.7865]
[1733303282778,1.40232238,3708.1,3707.7,2.69708]
[1733303282939,0.82484545,3708.0,3707.7,2.69708]
[1733303283142,1.11427098,3708.2,3707.7,2.69708]
[1733303283143,0.65617878,3707.9,3707.7,2.69708]
[1733303283395,0.65617878,3707.8,3707.7,2.69708]
[1733303283563,0.65617878,3707.8,3707.5,0.7865]
[1733303283765,1.40231986,3708.1,3707.7,2.69708]
[1733303283971,1.75980332,3708.0,3707.7,2.69708]
[1733303284295,0.6563083,3707.9,3707.5,0.7865]
[1733303284497,0.65630878,3707.8,3707.5,0.7865]
[1733303284709,26.40594043,3708.3,3707.5,3.48368]
[1733303284909,4.27640344,3708.2,3707.5,3.48368]
[1733303285192,1.75982369,3708.1,3708.0,2.69686]
[1733303285600,1.75982369,3708.1,3707.8,2.69699]
[1733303285895,0.82495118,3708.0,3707.8,2.69699]
[1733303286049,0.25241859,3707.9,3707.8,2.69699]
[1733303286364,0.65628833,3707.9,3707.8,2.69699]
[1733303289357,25.98522998,3708.3,3707.8,3.315059]
[1733303289682,24.870959,3708.3,3708.2,2.69672]
[1733303289976,28.03387429,3708.3,3707.8,2.69699]
[1733303290146,0.82538053,3708.2,3708.0,2.69683]
[1733303290471,0.82538053,3708.1,3708.0,2.69683]